[Event "Kupreichik Memorial Open 2018"]
[Site "Minsk"]
[Date "2018.06.22"]
[Round "8"]
[White "Sadovnikov, Konstantin"]
[Black "Terletsky, Oleg"]
[Result "0-1"]
[ECO "C26"]
[WhiteElo "1908"]
[BlackElo "2268"]
[Annotator "NA"]
[PlyCount "118"]
[EventDate "2018.06.21"]
[EventCountry "BLR"]
[SourceTitle "playchess.com"]
[Source "ChessBase"]
[SourceQuality "1"]
[TimeControl "900+10"]

1. e4 {[%emt 0:00:00]} e5 {[%emt 0:00:01]} 2. Nc3 {[%emt 0:00:00]} Nf6 {[%emt 0:00:01]} 3. Bc4 {[%emt 0:00:00]} Bc5 {[%emt 0:00:12]} 4. d3 {[%emt 0:00:00]} d6 {[%emt 0:00:01]} 5. f4 {[%emt 0:00:00]} Nc6 {[%emt 0:00:02]} 6. Nf3 {[%emt 0:00:00]} Bg4 {[%emt 0:00:01]} 7. h3 {[%emt 0:00:00]} Bxf3 {[%emt 0:00:02]} 8. Qxf3 {[%emt 0:00:00]} Nd4 {[%emt 0:00:01]} 9. Qg3 {[%emt 0:00:01]} Nh5 {[%emt 0:00:08]} 10. Qg4 {[%emt 0:00:10]} g6 {[%emt 0:00:03]} 11. Bb3 {[%emt 0:01:20]} Nxb3 {[%emt 0:00:55]} 12. axb3 {[%emt 0:00:01]} Qd7 {[%emt 0:00:03]} 13. fxe5 {[%emt 0:02:04]} dxe5 {[%emt 0:00:21]} 14. Qf3 {[%emt 0:00:09]} O-O-O {[%emt 0:04:07]} 15. Be3 {[%emt 0:00:33]} Bxe3 {[%emt 0:01:19]} 16. Qxe3 {[%emt 0:00:02]} Qd4 {[%emt 0:00:02]} 17. Qxd4 {[%emt 0:00:19]} exd4 {[%emt 0:00:02]} 18. Ne2 {[%emt 0:00:02]} Kb8 {[%emt 0:02:03]} 19. Ra4 {[%emt 0:00:11]} c5 {[%emt 0:00:10]} 20. b4 {[%emt 0:00:02]} f5 {[%emt 0:01:04]} 21. exf5 {[%emt 0:00:14]} Rhe8 {[%emt 0:00:06]} 22. Kd2 {[%emt 0:00:02]} Rxe2+ {[%emt 0:00:17]} 23. Kxe2 {[%emt 0:00:04]} Ng3+ {[%emt 0:00:02]} 24. Kf3 {[%emt 0:00:19]} Nxh1 {[%emt 0:00:04]} 25. g3 {[%emt 0:01:55]} gxf5 {[%emt 0:01:07]} 26. Kg2 {[%emt 0:00:06]} cxb4 {[%emt 0:05:28]} 27. Rxb4 {[%emt 0:00:24]} Rc8 {[%emt 0:00:14]} 28. Kxh1 {[%emt 0:00:02]} Rxc2 {[%emt 0:00:01]} 29. Kg1 {[%emt 0:03:31]} Rd2 {[%emt 0:00:59]} 30. Rxd4 {[%emt 0:00:10]} Rxb2 {[%emt 0:00:02]} 31. Kf1 {[%emt 0:00:01]} a5 {[%emt 0:00:06]} 32. Ke1 {[%emt 0:00:02]} Ka7 {[%emt 0:00:52]} 33. Kd1 {[%emt 0:00:16]} Rg2 {[%emt 0:00:06]} 34. g4 {[%emt 0:00:21]} fxg4 35. hxg4 Ka6 {[%emt 0:00:10]} 36. Kc1 {[%emt 0:00:13]} b6 {[%emt 0:00:05]} 37. Rf4 {[%emt 0:00:33]} Kb5 {[%emt 0:00:06]} 38. Kb1 {[%emt 0:02:16]} Kc5 {[%emt 0:00:03]} 39. Rc4+ {[%emt 0:00:33]} Kd5 {[%emt 0:00:02]} 40. Rf4 {[%emt 0:00:01]} Rd2 {[%emt 0:00:31]} 41. Rf7 {[%emt 0:01:22]} Rxd3 {[%emt 0:00:13]} 42. Rxh7 {[%emt 0:00:01]} Rg3 {[%emt 0:00:18]} 43. Rg7 {[%emt 0:00:01]} Kc4 {[%emt 0:00:13]} 44. g5 {[%emt 0:00:12]} Kb3 {[%emt 0:00:08]} 45. Kc1 {[%emt 0:00:02]} b5 {[%emt 0:00:03]} 46. g6 {[%emt 0:00:39]} b4 {[%emt 0:00:02]} 47. Rg8 {[%emt 0:00:01]} a4 {[%emt 0:00:03]} 48. g7 {[%emt 0:00:02]} a3 {[%emt 0:00:02]} 49. Rd8 {[%emt 0:00:30]} Rxg7 {[%emt 0:00:09]} 50. Rd3+ {[%emt 0:00:08]} Kc4 {[%emt 0:00:13]} 51. Rd1 {[%emt 0:00:04]} Rg2 {[%emt 0:00:23]} 52. Kb1 {[%emt 0:00:02]} b3 {[%emt 0:00:08]} 53. Rf1 {[%emt 0:00:27]} Rd2 {[%emt 0:00:11]} 54. Ka1 {[%emt 0:00:43]} Kc3 {[%emt 0:00:19]} 55. Rc1+ {[%emt 0:00:07]} Kd3 {[%emt 0:00:03]} 56. Rh1 {[%emt 0:00:04]} Re2 {[%emt 0:00:25]} 57. Rd1+ {[%emt 0:00:13]} Kc2 {[%emt 0:00:05]} 58. Rc1+ {[%emt 0:02:18]} Kd2 {[%emt 0:00:03]} 59. Rb1 {[%emt 0:00:01]} Re1 0-1

[Event "Kupreichik Memorial Open 2018"]
[Site "Minsk"]
[Date "2018.06.22"]
[Round "8"]
[White "Kirilin, Dmitrij"]
[Black "Zarubitski, Viachaslau"]
[Result "0-1"]
[ECO "A46"]
[WhiteElo "1898"]
[BlackElo "2265"]
[Annotator "NA"]
[PlyCount "87"]
[EventDate "2018.06.21"]
[EventCountry "BLR"]
[SourceTitle "playchess.com"]
[Source "ChessBase"]
[SourceQuality "1"]
[TimeControl "900+10"]

1. d4 {[%emt 0:00:00]} Nf6 {[%emt 0:00:00]} 2. Nf3 {[%emt 0:00:00]} e6 {[%emt 0:00:01]} 3. c4 {[%emt 0:00:01]} Nc6 {[%emt 0:00:01]} 4. g3 {[%emt 0:00:13]} Bb4+ {[%emt 0:00:09]} 5. Bd2 {[%emt 0:00:10]} Qe7 {[%emt 0:00:01]} 6. Bg2 {[%emt 0:00:10]} Bxd2+ {[%emt 0:00:04]} 7. Nbxd2 {[%emt 0:00:05]} d6 {[%emt 0:00:02]} 8. O-O {[%emt 0:00:36]} e5 {[%emt 0:00:01]} 9. e3 {[%emt 0:00:35]} O-O {[%emt 0:00:10]} 10. Qc2 {[%emt 0:00:16]} g6 {[%emt 0:01:13]} 11. Qc3 {[%emt 0:01:03]} e4 {[%emt 0:00:23]} 12. Ne1 {[%emt 0:02:55]} Bg4 {[%emt 0:01:05]} 13. Nc2 {[%emt 0:00:34]} Rae8 {[%emt 0:00:09]} 14. Rfe1 {[%emt 0:00:17]} Nb8 {[%emt 0:00:36]} 15. b4 {[%emt 0:00:36]} c6 {[%emt 0:00:23]} 16. a4 {[%emt 0:00:14]} Nbd7 {[%emt 0:00:20]} 17. c5 {[%emt 0:01:06]} d5 {[%emt 0:00:11]} 18. b5 {[%emt 0:00:05]} Qe6 {[%emt 0:00:39]} 19. Rab1 {[%emt 0:00:17]} Bh3 {[%emt 0:00:07]} 20. Nf1 {[%emt 0:00:25]} Bxg2 {[%emt 0:00:14]} 21. Kxg2 {[%emt 0:00:01]} Qf5 {[%emt 0:00:03]} 22. Qd2 {[%emt 0:00:32]} Rb8 {[%emt 0:00:08]} 23. Rb2 {[%emt 0:01:00]} h5 {[%emt 0:00:04]} 24. h3 {[%emt 0:00:20]} Nh7 {[%emt 0:00:16]} 25. h4 {[%emt 0:00:59]} g5 {[%emt 0:00:09]} 26. Qd1 {[%emt 0:00:19]} Ndf6 {[%emt 0:00:49]} 27. Qe2 {[%emt 0:00:26]} Kh8 {[%emt 0:00:21]} 28. g4 {[%emt 0:02:00]} hxg4 {[%emt 0:01:38]} 29. hxg5 {[%emt 0:00:20]} Nxg5 {[%emt 0:00:14]} 30. Ng3 {[%emt 0:00:00]} Qf3+ {[%emt 0:00:07]} 31. Qxf3 {[%emt 0:00:16]} gxf3+ {[%emt 0:01:25]} 32. Kf1 {[%emt 0:00:02]} Ng4 {[%emt 0:00:53]} 33. Reb1 {[%emt 0:00:24]} Ra8 {[%emt 0:00:45]} 34. bxc6 {[%emt 0:00:22]} bxc6 {[%emt 0:00:01]} 35. Rb7 {[%emt 0:00:03]} Nh3 {[%emt 0:00:36]} 36. Rc7 {[%emt 0:00:30]} Nhxf2 {[%emt 0:00:14]} 37. Rxc6 {[%emt 0:00:01]} Rab8 {[%emt 0:00:10]} 38. Rb5 {[%emt 0:00:17]} Nd1 {[%emt 0:00:24]} 39. Nf5 {[%emt 0:01:06]} Nh2+ {[%emt 0:00:24]} 40. Kg1 {[%emt 0:00:31]} f2+ {[%emt 0:00:01]} 41. Kxh2 {[%emt 0:00:01]} f1=Q {[%emt 0:00:01]} 42. Rh6+ {[%emt 0:00:01]} Kg8 {[%emt 0:00:01]} 43. Rh5 {[%emt 0:01:09]} Qe2+ {[%emt 0:00:10]} 44. Kg1 {[%emt 0:00:11]} 0-1

[Event "Kupreichik Memorial Open 2018"]
[Site "Minsk"]
[Date "2018.06.22"]
[Round "8"]
[White "Tyurin, Artem"]
[Black "Sirotkina, Nina"]
[Result "0-1"]
[ECO "B01"]
[WhiteElo "1855"]
[BlackElo "2116"]
[Annotator "NA"]
[PlyCount "89"]
[EventDate "2018.06.21"]
[EventCountry "BLR"]
[SourceTitle "playchess.com"]
[Source "ChessBase"]
[SourceQuality "1"]
[TimeControl "900+10"]

1. e4 {[%emt 0:00:00]} d5 {[%emt 0:00:10]} 2. exd5 {[%emt 0:00:00]} Qxd5 {[%emt 0:00:02]} 3. Nc3 {[%emt 0:00:00]} Qd6 {[%emt 0:00:02]} 4. d4 {[%emt 0:00:03]} Nf6 {[%emt 0:00:08]} 5. Bc4 {[%emt 0:00:01]} Bg4 {[%emt 0:00:49]} 6. f3 {[%emt 0:00:18]} Bf5 {[%emt 0:00:39]} 7. Nge2 {[%emt 0:00:08]} c6 {[%emt 0:00:13]} 8. Bf4 {[%emt 0:00:04]} Qd8 {[%emt 0:01:23]} 9. O-O {[%emt 0:00:27]} e6 {[%emt 0:00:06]} 10. Ng3 {[%emt 0:00:01]} Bg6 {[%emt 0:00:04]} 11. Re1 {[%emt 0:00:26]} Be7 {[%emt 0:00:39]} 12. Nge4 {[%emt 0:00:56]} O-O {[%emt 0:00:45]} 13. Qd2 {[%emt 0:00:55]} Nbd7 {[%emt 0:00:40]} 14. Rad1 {[%emt 0:00:07]} Nb6 {[%emt 0:00:12]} 15. Bb3 {[%emt 0:00:06]} Nbd5 {[%emt 0:00:34]} 16. Be5 {[%emt 0:00:11]} a5 {[%emt 0:01:06]} 17. a3 {[%emt 0:00:59]} b5 {[%emt 0:00:47]} 18. Nxf6+ {[%emt 0:00:42]} Bxf6 {[%emt 0:00:14]} 19. Ne4 {[%emt 0:00:11]} Bxe5 {[%emt 0:01:01]} 20. dxe5 {[%emt 0:00:04]} Qb6+ {[%emt 0:00:03]} 21. Qf2 {[%emt 0:01:12]} a4 {[%emt 0:01:12]} 22. Ba2 {[%emt 0:00:32]} Rfd8 {[%emt 0:00:32]} 23. Nd6 {[%emt 0:01:43]} Qxf2+ {[%emt 0:00:59]} 24. Kxf2 {[%emt 0:00:01]} b4 {[%emt 0:00:33]} 25. Bxd5 {[%emt 0:00:38]} cxd5 {[%emt 0:00:11]} 26. axb4 {[%emt 0:00:02]} Bxc2 {[%emt 0:00:10]} 27. Rc1 {[%emt 0:00:03]} Bg6 {[%emt 0:00:11]} 28. b5 {[%emt 0:00:20]} Rab8 {[%emt 0:00:31]} 29. Re3 {[%emt 0:00:31]} d4 {[%emt 0:00:42]} 30. Ra3 f6 31. f4 {[%emt 0:00:52]} fxe5 {[%emt 0:00:55]} 32. fxe5 {[%emt 0:00:02]} Rf8+ {[%emt 0:00:05]} 33. Ke1 {[%emt 0:01:33]} d3 {[%emt 0:01:03]} 34. Rxa4 {[%emt 0:00:30]} d2+ {[%emt 0:00:24]} 35. Kxd2 {[%emt 0:00:01]} Rf2+ {[%emt 0:00:01]} 36. Kc3 {[%emt 0:01:52]} Be8 {[%emt 0:00:40]} 37. Kb3 {[%emt 0:01:19]} Rxg2 {[%emt 0:00:28]} 38. Rac4 {[%emt 0:00:21]} Bd7 {[%emt 0:00:59]} 39. Rc7 {[%emt 0:00:41]} Re2 {[%emt 0:01:35]} 40. Rxd7 {[%emt 0:00:44]} Rxe5 {[%emt 0:00:05]} 41. Rdc7 {[%emt 0:00:15]} h5 {[%emt 0:00:14]} 42. Rc8+ {[%emt 0:00:04]} Rxc8 {[%emt 0:00:01]} 43. Rxc8+ {[%emt 0:00:02]} Kh7 {[%emt 0:00:01]} 44. b6 {[%emt 0:00:05]} Rd5 {[%emt 0:00:30]} 45. b7 {[%emt 0:00:05]} 0-1

[Event "Kupreichik Memorial Open 2018"]
[Site "Minsk"]
[Date "2018.06.22"]
[Round "8"]
[White "Kruglikova, Viktorija"]
[Black "Ustiugov, Boris"]
[Result "1-0"]
[ECO "B46"]
[WhiteElo "1839"]
[BlackElo "1614"]
[Annotator "NA"]
[PlyCount "64"]
[EventDate "2018.06.21"]
[EventCountry "BLR"]
[SourceTitle "playchess.com"]
[Source "ChessBase"]
[SourceQuality "1"]
[TimeControl "900+10"]

1. e4 {[%emt 0:00:00]} c5 {[%emt 0:00:01]} 2. Nf3 {[%emt 0:00:00]} e6 {[%emt 0:00:03]} 3. d4 {[%emt 0:00:00]} cxd4 {[%emt 0:00:01]} 4. Nxd4 a6 5. Nc3 {[%emt 0:00:03]} Nc6 {[%emt 0:00:03]} 6. Be3 {[%emt 0:00:04]} Nf6 {[%emt 0:00:02]} 7. g4 {[%emt 0:00:01]} d6 {[%emt 0:00:55]} 8. g5 {[%emt 0:00:16]} Nd7 {[%emt 0:00:03]} 9. h4 {[%emt 0:00:05]} Be7 {[%emt 0:00:43]} 10. f4 {[%emt 0:00:46]} Qc7 {[%emt 0:00:20]} 11. Bh3 {[%emt 0:00:27]} Nb6 {[%emt 0:01:34]} 12. Nxc6 {[%emt 0:00:36]} Qxc6 {[%emt 0:01:18]} 13. Qd4 {[%emt 0:00:01]} Nc4 {[%emt 0:00:15]} 14. Qxg7 {[%emt 0:00:20]} Rf8 {[%emt 0:00:02]} 15. Bc1 {[%emt 0:00:01]} Bd7 {[%emt 0:00:46]} 16. b3 {[%emt 0:00:19]} Ne5 {[%emt 0:01:14]} 17. Bb2 {[%emt 0:00:05]} Ng6 {[%emt 0:00:58]} 18. O-O {[%emt 0:00:39]} Qc5+ {[%emt 0:01:17]} 19. Kh2 {[%emt 0:00:08]} Nxh4 {[%emt 0:00:55]} 20. Qxh7 {[%emt 0:00:55]} Ng6 {[%emt 0:00:07]} 21. Kg3 {[%emt 0:00:14]} O-O-O {[%emt 0:00:21]} 22. Rf3 {[%emt 0:00:26]} Nxf4 {[%emt 0:01:47]} 23. Rxf4 {[%emt 0:00:27]} Bxg5 {[%emt 0:00:53]} 24. Rf3 {[%emt 0:00:30]} Bd2 {[%emt 0:00:35]} 25. Rd3 {[%emt 0:02:20]} Qg5+ {[%emt 0:00:30]} 26. Bg4 {[%emt 0:01:20]} Rg8 {[%emt 0:00:57]} 27. Kf2 {[%emt 0:01:44]} Qxg4 {[%emt 0:00:35]} 28. Rxd2 {[%emt 0:00:45]} Qf4+ {[%emt 0:00:36]} 29. Ke2 {[%emt 0:00:42]} Rg2+ {[%emt 0:00:07]} 30. Kd3 {[%emt 0:00:01]} Rxd2+ {[%emt 0:01:07]} 31. Kc4 {[%emt 0:00:01]} Qe5 {[%emt 0:01:01]} 32. Na4 {[%emt 0:00:59]} d5+ 1-0

[Event "Kupreichik Memorial Open 2018"]
[Site "Minsk"]
[Date "2018.06.22"]
[Round "8"]
[White "Masjuk, Vladimir"]
[Black "Tkachou, Pavel"]
[Result "1-0"]
[ECO "C05"]
[WhiteElo "1829"]
[BlackElo "1535"]
[Annotator "NA"]
[PlyCount "47"]
[EventDate "2018.06.21"]
[EventCountry "BLR"]
[SourceTitle "playchess.com"]
[Source "ChessBase"]
[SourceQuality "1"]
[TimeControl "900+10"]

1. e4 {[%emt 0:00:00]} e6 {[%emt 0:00:00]} 2. d4 d5 3. Nd2 {[%emt 0:00:00]} Nf6 {[%emt 0:00:20]} 4. e5 {[%emt 0:00:00]} Nfd7 {[%emt 0:00:00]} 5. Bd3 {[%emt 0:00:01]} c5 {[%emt 0:00:02]} 6. c3 {[%emt 0:00:02]} Nc6 {[%emt 0:00:06]} 7. Ne2 {[%emt 0:00:03]} Qb6 {[%emt 0:00:05]} 8. Nf3 {[%emt 0:00:05]} cxd4 {[%emt 0:00:05]} 9. cxd4 {[%emt 0:00:03]} f6 {[%emt 0:00:39]} 10. exf6 {[%emt 0:00:03]} Nxf6 {[%emt 0:00:01]} 11. O-O {[%emt 0:00:04]} Bd6 {[%emt 0:00:06]} 12. a3 {[%emt 0:00:09]} O-O {[%emt 0:00:05]} 13. h3 {[%emt 0:00:10]} Ne4 {[%emt 0:01:31]} 14. b4 {[%emt 0:01:59]} e5 {[%emt 0:00:41]} 15. Be3 {[%emt 0:01:30]} Qd8 {[%emt 0:01:20]} 16. b5 {[%emt 0:00:22]} Nxd4 {[%emt 0:00:39]} 17. Nfxd4 {[%emt 0:01:47]} exd4 {[%emt 0:00:06]} 18. Nxd4 {[%emt 0:00:28]} Be5 {[%emt 0:00:40]} 19. Qb3 {[%emt 0:00:25]} Nxf2 {[%emt 0:01:23]} 20. Rxf2 {[%emt 0:00:26]} Rxf2 {[%emt 0:00:36]} 21. Bxf2 {[%emt 0:00:05]} Qf6 {[%emt 0:00:03]} 22. Qxd5+ {[%emt 0:00:09]} Kh8 {[%emt 0:00:08]} 23. Re1 {[%emt 0:01:20]} Bxh3 {[%emt 0:00:27]} 24. Qxe5 {[%emt 0:00:17]} 1-0

[Event "Kupreichik Memorial Open 2018"]
[Site "Minsk"]
[Date "2018.06.22"]
[Round "8"]
[White "Rybakova, Polina"]
[Black "Kozlov, Valentin"]
[Result "0-1"]
[ECO "B52"]
[WhiteElo "1826"]
[BlackElo "1553"]
[Annotator "NA"]
[PlyCount "140"]
[EventDate "2018.06.21"]
[EventCountry "BLR"]
[SourceTitle "playchess.com"]
[Source "ChessBase"]
[SourceQuality "1"]
[TimeControl "900+10"]

1. e4 {[%emt 0:00:00]} c5 {[%emt 0:00:01]} 2. Nf3 {[%emt 0:00:00]} d6 {[%emt 0:00:01]} 3. Bb5+ {[%emt 0:00:00]} Bd7 {[%emt 0:00:05]} 4. Bxd7+ {[%emt 0:00:00]} Qxd7 {[%emt 0:00:02]} 5. O-O {[%emt 0:00:02]} Nc6 {[%emt 0:00:08]} 6. d4 {[%emt 0:00:13]} cxd4 {[%emt 0:00:05]} 7. Nxd4 {[%emt 0:00:02]} Nf6 {[%emt 0:00:05]} 8. Nc3 {[%emt 0:00:10]} g6 {[%emt 0:00:03]} 9. f3 {[%emt 0:01:41]} Bg7 {[%emt 0:00:03]} 10. Be3 {[%emt 0:00:26]} O-O {[%emt 0:00:05]} 11. Qd2 {[%emt 0:00:28]} Ne5 {[%emt 0:00:55]} 12. b3 {[%emt 0:01:17]} a6 {[%emt 0:00:31]} 13. Na4 {[%emt 0:00:34]} Qd8 {[%emt 0:00:25]} 14. c4 {[%emt 0:00:23]} Rb8 {[%emt 0:01:00]} 15. Nc3 {[%emt 0:00:41]} Nc6 {[%emt 0:01:04]} 16. Rac1 {[%emt 0:01:27]} Nxd4 {[%emt 0:00:55]} 17. Bxd4 {[%emt 0:00:04]} h5 {[%emt 0:00:39]} 18. Qf2 {[%emt 0:00:55]} Bh6 {[%emt 0:01:14]} 19. Rcd1 {[%emt 0:00:34]} Qa5 {[%emt 0:00:23]} 20. Qb2 {[%emt 0:02:27]} Bg7 {[%emt 0:01:45]} 21. b4 {[%emt 0:01:21]} Qc7 {[%emt 0:00:43]} 22. Qe2 {[%emt 0:00:55]} Rbc8 {[%emt 0:01:06]} 23. c5 {[%emt 0:01:05]} dxc5 {[%emt 0:00:20]} 24. Bxc5 {[%emt 0:01:36]} b6 {[%emt 0:00:14]} 25. Bd4 {[%emt 0:00:09]} Rfd8 {[%emt 0:00:30]} 26. Qe3 {[%emt 0:01:30]} Qc4 {[%emt 0:01:31]} 27. Bxf6 {[%emt 0:01:06]} Bxf6 {[%emt 0:00:14]} 28. Nd5 {[%emt 0:00:04]} Rd6 {[%emt 0:00:57]} 29. Kh1 {[%emt 0:00:16]} Qxa2 {[%emt 0:00:48]} 30. e5 {[%emt 0:00:19]} Rxd5 {[%emt 0:00:16]} 31. Rxd5 {[%emt 0:00:07]} Qxd5 {[%emt 0:00:05]} 32. exf6 {[%emt 0:00:03]} exf6 {[%emt 0:00:02]} 33. Qxb6 {[%emt 0:00:14]} Qb5 {[%emt 0:00:26]} 34. Qxb5 {[%emt 0:00:16]} axb5 {[%emt 0:00:01]} 35. Rd1 {[%emt 0:00:13]} Rc4 {[%emt 0:00:05]} 36. Rb1 {[%emt 0:00:07]} f5 {[%emt 0:00:02]} 37. Kg1 {[%emt 0:00:04]} Kg7 {[%emt 0:00:02]} 38. Rb2 {[%emt 0:00:08]} Kf6 {[%emt 0:00:13]} 39. Kf2 {[%emt 0:00:06]} Ke5 {[%emt 0:00:16]} 40. Ke3 {[%emt 0:00:23]} f4+ {[%emt 0:00:28]} 41. Kd3 {[%emt 0:00:09]} Kd5 {[%emt 0:00:24]} 42. h4 {[%emt 0:00:11]} f6 {[%emt 0:00:05]} 43. Rb1 {[%emt 0:00:10]} g5 {[%emt 0:00:34]} 44. Kd2 {[%emt 0:00:12]} Ke5 {[%emt 0:01:47]} 45. Kd3 {[%emt 0:00:05]} Kf5 {[%emt 0:00:27]} 46. hxg5 {[%emt 0:00:03]} fxg5 {[%emt 0:00:05]} 47. Rh1 {[%emt 0:00:20]} Rxb4 {[%emt 0:00:13]} 48. Rxh5 {[%emt 0:00:03]} Rb1 {[%emt 0:00:08]} 49. Rh8 {[%emt 0:00:06]} Rg1 {[%emt 0:00:29]} 50. Rb8 {[%emt 0:00:13]} Rxg2 {[%emt 0:00:04]} 51. Rxb5+ {[%emt 0:00:02]} Kg6 {[%emt 0:00:01]} 52. Rb6+ {[%emt 0:00:08]} Kh5 {[%emt 0:00:02]} 53. Rb8 {[%emt 0:00:27]} Ra2 {[%emt 0:00:13]} 54. Ke4 {[%emt 0:00:12]} Ra4+ {[%emt 0:00:22]} 55. Kf5 {[%emt 0:00:07]} Ra5+ {[%emt 0:00:01]} 56. Ke4 {[%emt 0:00:05]} Kh4 {[%emt 0:00:05]} 57. Rh8+ {[%emt 0:00:16]} Kg3 {[%emt 0:00:01]} 58. Rg8 {[%emt 0:00:05]} Kf2 {[%emt 0:00:17]} 59. Rg7 {[%emt 0:00:09]} Ra4+ {[%emt 0:00:06]} 60. Kf5 {[%emt 0:00:14]} Kxf3 {[%emt 0:00:03]} 61. Kxg5 {[%emt 0:00:07]} Ra5+ {[%emt 0:00:14]} 62. Kh4 {[%emt 0:00:15]} Rf5 {[%emt 0:00:08]} 63. Rg1 {[%emt 0:00:12]} Kf2 {[%emt 0:00:11]} 64. Ra1 {[%emt 0:00:09]} Re5 {[%emt 0:00:40]} 65. Kg4 {[%emt 0:00:12]} f3 {[%emt 0:00:12]} 66. Ra2+ {[%emt 0:00:10]} Re2 {[%emt 0:00:01]} 67. Ra3 {[%emt 0:00:02]} Re3 {[%emt 0:00:27]} 68. Ra1 {[%emt 0:00:14]} Kg2 {[%emt 0:00:12]} 69. Rb1 {[%emt 0:00:15]} f2 {[%emt 0:00:02]} 70. Rb2 {[%emt 0:00:03]} Kg1 {[%emt 0:00:29]} 0-1

[Event "Kupreichik Memorial Open 2018"]
[Site "Minsk"]
[Date "2018.06.22"]
[Round "8"]
[White "Girshgorn, Maria"]
[Black "Mialik, Artsiom"]
[Result "0-1"]
[ECO "A40"]
[WhiteElo "1805"]
[BlackElo "1432"]
[Annotator "NA"]
[PlyCount "34"]
[EventDate "2018.06.21"]
[EventCountry "BLR"]
[SourceTitle "playchess.com"]
[Source "ChessBase"]
[SourceQuality "1"]
[TimeControl "900+10"]

1. d4 {[%emt 0:00:00]} e6 {[%emt 0:00:01]} 2. Nf3 {[%emt 0:00:00]} f5 {[%emt 0:00:02]} 3. g3 {[%emt 0:00:00]} Nf6 {[%emt 0:00:02]} 4. Bg2 {[%emt 0:00:00]} d5 {[%emt 0:00:10]} 5. O-O {[%emt 0:00:01]} Bd6 {[%emt 0:00:04]} 6. c4 {[%emt 0:00:17]} c6 {[%emt 0:00:12]} 7. Nc3 {[%emt 0:00:06]} O-O {[%emt 0:00:06]} 8. cxd5 {[%emt 0:01:09]} exd5 {[%emt 0:00:06]} 9. Bf4 {[%emt 0:01:01]} Qc7 {[%emt 0:02:44]} 10. Bxd6 {[%emt 0:00:55]} Qxd6 {[%emt 0:00:03]} 11. Rb1 {[%emt 0:00:02]} Nbd7 {[%emt 0:00:30]} 12. b4 {[%emt 0:00:05]} Ne4 {[%emt 0:00:02]} 13. Qc2 {[%emt 0:00:27]} Ndf6 {[%emt 0:01:04]} 14. e3 {[%emt 0:01:29]} Ng4 {[%emt 0:02:47]} 15. b5 {[%emt 0:00:32]} Qh6 {[%emt 0:01:24]} 16. Qd3 {[%emt 0:01:56]} Ng5 {[%emt 0:01:30]} 17. Nxg5 {[%emt 0:00:11]} Qxh2# {[%emt 0:00:15]} 0-1

[Event "Kupreichik Memorial Open 2018"]
[Site "Minsk"]
[Date "2018.06.22"]
[Round "8"]
[White "Tkachou, Viktar"]
[Black "Hurman, Pavel"]
[Result "1-0"]
[ECO "A06"]
[WhiteElo "1791"]
[BlackElo "1315"]
[Annotator "NA"]
[PlyCount "81"]
[EventDate "2018.06.21"]
[EventCountry "BLR"]
[SourceTitle "playchess.com"]
[Source "ChessBase"]
[SourceQuality "1"]
[TimeControl "900+10"]

1. Nf3 {[%emt 0:00:00]} d5 {[%emt 0:00:02]} 2. c4 {[%emt 0:00:00]} c6 {[%emt 0:00:02]} 3. e3 {[%emt 0:00:00]} Nf6 {[%emt 0:00:03]} 4. b3 {[%emt 0:00:00]} Bg4 {[%emt 0:00:18]} 5. Be2 {[%emt 0:00:05]} e6 {[%emt 0:00:03]} 6. O-O {[%emt 0:00:10]} Bd6 {[%emt 0:00:41]} 7. Bb2 {[%emt 0:00:08]} O-O {[%emt 0:00:04]} 8. d3 {[%emt 0:00:11]} Na6 {[%emt 0:00:14]} 9. Nbd2 {[%emt 0:00:18]} Nb4 {[%emt 0:02:44]} 10. a3 {[%emt 0:00:16]} Na6 {[%emt 0:00:20]} 11. h3 {[%emt 0:00:25]} Bf5 {[%emt 0:00:12]} 12. Qc2 {[%emt 0:00:55]} Be7 {[%emt 0:00:35]} 13. Nh4 {[%emt 0:00:39]} Bg6 {[%emt 0:00:13]} 14. Nxg6 {[%emt 0:00:03]} hxg6 {[%emt 0:00:01]} 15. Nf3 {[%emt 0:00:19]} Qd6 {[%emt 0:00:24]} 16. b4 {[%emt 0:00:43]} Rac8 {[%emt 0:00:22]} 17. c5 {[%emt 0:00:33]} Qd8 {[%emt 0:00:14]} 18. Qc3 {[%emt 0:00:13]} b6 {[%emt 0:00:17]} 19. cxb6 {[%emt 0:00:48]} axb6 {[%emt 0:00:04]} 20. d4 {[%emt 0:00:41]} Nb8 {[%emt 0:00:17]} 21. Qd2 {[%emt 0:00:25]} Ne4 {[%emt 0:00:07]} 22. Qd3 {[%emt 0:00:16]} Nd7 {[%emt 0:00:28]} 23. Rac1 {[%emt 0:00:14]} c5 {[%emt 0:00:07]} 24. dxc5 {[%emt 0:00:30]} bxc5 {[%emt 0:00:05]} 25. bxc5 {[%emt 0:00:14]} Ndxc5 {[%emt 0:00:05]} 26. Qb1 {[%emt 0:00:41]} Rb8 {[%emt 0:00:32]} 27. Qa2 {[%emt 0:00:33]} Na4 {[%emt 0:00:22]} 28. Be5 {[%emt 0:00:23]} Bd6 {[%emt 0:00:26]} 29. Rc2 {[%emt 0:01:01]} Bxe5 {[%emt 0:00:20]} 30. Nxe5 {[%emt 0:00:04]} Qd6 {[%emt 0:00:17]} 31. Nf3 {[%emt 0:01:03]} Nac3 {[%emt 0:00:27]} 32. Qa1 {[%emt 0:00:06]} Nxe2+ {[%emt 0:00:07]} 33. Rxe2 {[%emt 0:00:03]} Ra8 {[%emt 0:00:08]} 34. Rc1 {[%emt 0:01:45]} Rxa3 {[%emt 0:00:17]} 35. Qb2 {[%emt 0:00:05]} Raa8 {[%emt 0:00:26]} 36. Rec2 {[%emt 0:00:06]} Rab8 {[%emt 0:00:14]} 37. Qd4 {[%emt 0:00:05]} f6 {[%emt 0:03:20]} 38. Rc6 {[%emt 0:00:37]} Qe7 {[%emt 0:01:59]} 39. Rc7 {[%emt 0:00:27]} Qb4 {[%emt 0:00:14]} 40. Qa7 {[%emt 0:00:32]} Kh8 {[%emt 0:03:32]} 41. Rxg7 {[%emt 0:00:23]} 1-0

[Event "Kupreichik Memorial Open 2018"]
[Site "Minsk"]
[Date "2018.06.22"]
[Round "8"]
[White "Mialik, Uladzislau"]
[Black "Markhanau, Fiodar"]
[Result "1-0"]
[ECO "A06"]
[WhiteElo "1768"]
[BlackElo "1306"]
[Annotator "NA"]
[PlyCount "65"]
[EventDate "2018.06.21"]
[EventCountry "BLR"]
[SourceTitle "playchess.com"]
[Source "ChessBase"]
[SourceQuality "1"]
[TimeControl "900+10"]

1. Nf3 {[%emt 0:00:00]} d5 {[%emt 0:00:07]} 2. g3 {[%emt 0:00:00]} Nf6 {[%emt 0:00:09]} 3. Bg2 {[%emt 0:00:00]} e6 {[%emt 0:00:01]} 4. d4 {[%emt 0:00:02]} Nc6 {[%emt 0:00:12]} 5. O-O {[%emt 0:00:05]} Bd6 {[%emt 0:00:02]} 6. c4 {[%emt 0:00:15]} dxc4 {[%emt 0:00:31]} 7. Qa4 {[%emt 0:00:11]} Bd7 {[%emt 0:00:25]} 8. Qxc4 {[%emt 0:00:05]} Na5 {[%emt 0:00:39]} 9. Qd3 {[%emt 0:00:09]} Nc6 {[%emt 0:00:14]} 10. a3 {[%emt 0:00:17]} Ne7 {[%emt 0:00:02]} 11. e4 {[%emt 0:00:22]} Nc6 12. e5 {[%emt 0:00:20]} Nd5 {[%emt 0:03:17]} 13. exd6 {[%emt 0:00:04]} cxd6 {[%emt 0:00:02]} 14. Nc3 {[%emt 0:00:08]} Nxc3 {[%emt 0:00:19]} 15. bxc3 {[%emt 0:00:05]} d5 {[%emt 0:00:01]} 16. Rb1 {[%emt 0:00:34]} b6 {[%emt 0:00:14]} 17. Ne5 {[%emt 0:00:36]} Nxe5 {[%emt 0:00:09]} 18. dxe5 {[%emt 0:00:02]} a6 {[%emt 0:00:08]} 19. c4 {[%emt 0:00:19]} Bc6 {[%emt 0:01:30]} 20. Be3 {[%emt 0:02:08]} b5 {[%emt 0:00:54]} 21. cxd5 {[%emt 0:00:11]} Bxd5 {[%emt 0:00:09]} 22. Bxd5 {[%emt 0:00:10]} Qxd5 {[%emt 0:00:46]} 23. Qxd5 {[%emt 0:00:02]} exd5 {[%emt 0:00:02]} 24. Rfd1 {[%emt 0:00:03]} Rd8 {[%emt 0:00:23]} 25. Rd3 {[%emt 0:00:22]} Ke7 {[%emt 0:01:02]} 26. Bg5+ {[%emt 0:00:07]} f6 {[%emt 0:00:05]} 27. exf6+ {[%emt 0:00:02]} gxf6 {[%emt 0:00:01]} 28. Bf4 {[%emt 0:00:21]} Rd7 {[%emt 0:00:12]} 29. Rc1 {[%emt 0:00:35]} Ra8 {[%emt 0:00:44]} 30. Kg2 {[%emt 0:00:35]} Kf7 {[%emt 0:00:19]} 31. Rc6 {[%emt 0:00:30]} Kg7 {[%emt 0:00:37]} 32. Be3 {[%emt 0:00:22]} Kf7 {[%emt 0:00:05]} 33. Bd4 {[%emt 0:00:06]} 1-0